bitfinex/quotes_ETHUSD_20250414
["timestamp","ask_amount","ask_price","bid_price","bid_amount"]
[1744625503305,4.85446,1648.0,1647.7,4.85511]
[1744625503508,6.149631,1648.1,1647.7,4.85511]
[1744625503721,11.003861,1648.1,1647.7,4.85511]
[1744625504650,1.295421,1648.1,1647.9,4.85452]
[1744625504806,0.81,1648.1,1647.8,4.85484]
[1744625505001,4.85403,1648.2,1647.8,4.85484]
[1744625505339,5.65152,1648.4,1648.0,4.85417]
[1744625505527,4.85349,1648.3,1648.0,4.85417]
[1744625506042,4.85349,1648.3,1647.9,9.70922]
[1744625506206,10.757631,1648.3,1647.9,9.70922]
[1744625506408,10.757631,1648.3,1647.9,4.85461]
[1744625507307,4.85392,1648.2,1647.8,4.85483]
[1744625507537,4.85392,1648.2,1647.9,4.85454]
[1744625507707,5.903991,1648.3,1647.9,4.85462]
[1744625508037,1.050501,1648.3,1648.1,4.85405]
[1744625508237,24.01581177,1648.6,1648.2,4.85366]
[1744625508438,17.84581177,1648.6,1648.3,4.85336]
[1744625508653,22.69856177,1648.6,1648.3,4.85336]
[1744625509139,22.69856177,1648.6,1648.2,4.85366]
[1744625509315,9.689,1648.6,1648.2,4.91444022]
[1744625509514,0.7611,1648.7,1648.2,4.85366]
[1744625509714,4.85311,1648.5,1648.1,4.85407]
[1744625509918,4.85311,1648.5,1648.1,9.70801]
[1744625510128,0.970575,1648.5,1648.2,9.70733]
[1744625510333,5.823635,1648.5,1648.2,4.85366]
[1744625510625,4.85328,1648.4,1648.1,9.708]
[1744625511346,4.85328,1648.4,1648.1,4.85398]
[1744625511707,4.8539,1648.2,1647.9,4.8546]
[1744625511914,4.8539,1648.2,1647.9,9.70913]
[1744625512139,0.5823635,1648.4,1648.1,4.85388]
[1744625512313,5.4356435,1648.4,1648.1,4.85388]
[1744625512519,4.85363,1648.3,1647.9,9.70911]
[1744625512715,6.136093,1648.2,1647.8,4.85473]
[1744625512941,6.136093,1648.2,1647.9,4.85452]
[1744625513440,6.136093,1648.2,1647.8,9.70978]
[1744625513441,10.990003,1648.2,1647.8,9.70978]
[1744625513743,10.990003,1648.2,1647.8,4.85489]
[1744625514045,10.990003,1648.2,1647.7,4.85514]
[1744625514046,9.70846,1648.1,1647.7,4.85514]
[1744625514211,10.8073703,1648.1,1647.7,9.71026]
[1744625514611,5.9531403,1648.1,1647.7,9.71026]
[1744625514945,5.9531403,1648.1,1647.7,4.85512]
[1744625515244,4.85484,1647.9,1647.5,4.85573]
[1744625515540,4.85526,1647.7,1647.4,10.54137]
[1744625515709,4.85526,1647.7,1647.4,5.68532]
[1744625515910,4.85526,1647.7,1647.4,0.8293]
[1744625516244,4.85535,1647.7,1647.3,4.85632]
[1744625516554,4.856,1647.5,1647.1,5.68265]
[1744625516715,4.85618,1647.4,1647.2,0.55576234]
[1744625516913,4.85643,1647.3,1647.2,0.55576234]
[1744625518060,4.85672,1647.2,1647.1,0.05]
[1744625521112,9.71256,1647.4,1647.1,0.05]
[1744625521320,4.85672,1647.2,1647.1,0.05]
[1744625522136,4.85667,1647.3,1647.1,0.05]
[1744625522337,9.71326,1647.3,1647.1,0.05]
[1744625522539,4.85659,1647.3,1647.1,0.05]
[1744625522754,9.71316,1647.3,1647.1,0.05]
[1744625523125,17.2456,1647.6,1647.1,0.05]
[1744625523324,9.39,1647.6,1647.5,4.85584]
[1744625523526,0.8229,1647.7,1647.2,4.8566]
[1744625523729,4.85569,1647.6,1647.2,9.71321]
[1744625524174,9.71145,1647.6,1647.2,9.71321]
[1744625524763,4.85585,1647.5,1647.2,4.85671]
[1744625524969,9.71135,1647.6,1647.2,4.85671]
[1744625525134,4.85586,1647.5,1647.1,4.90696]
[1744625525335,4.85616,1647.4,1647.1,4.90696]
[1744625525841,9.71249,1647.4,1647.1,4.90696]
[1744625526240,1.053425,1647.6,1647.1,0.05]
[1744625526241,4.85666,1647.3,1647.1,0.05]
[1744625527372,9.71246,1647.4,1647.1,0.05]
[1744625527684,4.85653,1647.3,1647.1,0.05]
[1744625527985,4.85672,1647.2,1647.1,0.05]
[1744625528470,0.971246,1647.4,1647.1,4.90693]
[1744625528642,5.827496,1647.4,1647.1,4.90693]
[1744625528843,0.8229,1647.7,1647.4,4.85603]
[1744625529043,11.02498,1647.8,1647.4,4.85603]
[1744625529248,11.02498,1647.8,1647.4,9.71206]
[1744625529642,3.17767193,1647.7,1647.2,4.85661]
[1744625529838,4.85565,1647.6,1647.3,4.85641]
[1744625530042,6.14451419,1647.6,1647.2,9.71324]
[1744625530252,3.0,1647.8,1647.5,4.8556]
[1744625530591,7.85508,1647.8,1647.5,4.8556]
[1744625530756,12.71018,1647.8,1647.5,4.8556]
[1744625530962,4.85538,1647.7,1647.3,5.68594]
[1744625531283,4.85525,1647.7,1647.3,5.68594]
[1744625531485,4.85566,1647.6,1647.3,10.54225]
[1744625531806,0.485484,1647.9,1647.3,0.8297]
[1744625532126,0.828,1648.6,1647.7,4.85525]
[1744625532275,0.828,1648.6,1648.2,4.85349]
[1744625532469,0.568041,1648.6,1648.4,4.85318]
[1744625532807,7.85208,1648.8,1648.3,4.8534]
[1744625532808,4.85231,1648.7,1648.3,4.8534]
[1744625533129,18.44367193,1648.9,1648.3,4.8534]
[1744625533130,15.266,1648.9,1648.3,4.85327]
[1744625533281,4.85263,1648.6,1648.3,4.85327]
[1744625533620,9.70426,1648.8,1648.4,4.85305]
[1744625533923,0.970426,1648.7,1648.4,4.85305]
[1744625534090,4.85205,1648.8,1648.4,9.70614]
[1744625534431,23.29543193,1648.9,1648.4,9.70614]
[1744625534432,4.85669,1649.0,1648.6,4.85247]
[1744625534918,0.005,1649.0,1648.4,5.65528]
[1744625535127,0.005,1649.0,1648.8,4.85189]
[1744625535425,0.005,1649.0,1648.7,9.70444]
[1744625535623,0.52228082,1649.0,1648.7,4.85215]
[1744625536023,3.69995275,1649.0,1648.4,5.65522]
[1744625536203,4.85231,1648.7,1648.4,4.85312]
[1744625536406,4.85204,1648.8,1648.5,4.85285]
[1744625536598,4.85204,1648.8,1648.4,4.85301]
[1744625536797,0.485204,1648.7,1648.4,4.85301]
[1744625536983,9.70371,1648.9,1648.5,4.85273]
[1744625537809,4.85202,1648.8,1648.5,4.85273]
[1744625538085,4.85647,1649.0,1648.6,4.85247]
[1744625538710,9.70809,1649.0,1648.6,4.85247]
[1744625539081,5.822569,1648.9,1648.5,4.85285]
[1744625539583,5.822569,1648.9,1648.2,1.0076868]
[1744625539584,0.970809,1648.9,1648.2,5.8613068]
[1744625539787,0.005,1649.0,1648.8,4.85192]
[1744625539983,0.005,1649.0,1648.6,4.85253]
[1744625540183,4.85653,1649.0,1648.6,9.70497]
[1744625540578,4.85172,1648.9,1648.6,4.85244]
[1744625540782,0.485172,1648.8,1648.6,9.70488]
[1744625540983,4.85653,1649.0,1648.7,4.85229]
[1744625541625,4.85653,1649.0,1648.6,4.85244]
[1744625541809,4.85177,1648.9,1648.6,4.85244]
[1744625542009,0.005,1649.0,1648.2,5.8613768]
[1744625542223,3.17767193,1648.9,1648.5,4.85288]
[1744625542550,4.85255,1648.7,1648.3,4.85348]
[1744625542684,4.8526,1648.6,1648.3,4.85348]
[1744625542891,4.8526,1648.6,1648.2,5.0292568]
[1744625543092,4.85289,1648.5,1648.2,5.0292568]
[1744625543425,5.823439,1648.5,1648.2,5.0291268]
[1744625543846,0.970549,1648.5,1648.2,5.0291268]
[1744625543996,7.85211,1648.8,1648.4,4.85319]
[1744625544198,12.70435,1648.8,1648.4,4.85319]
[1744625544525,0.8288,1648.9,1648.5,4.85278]
[1744625544526,8.85828193,1648.9,1648.5,4.85278]
[1744625544833,5.68061,1648.9,1648.3,4.8534]
[1744625545034,0.005,1649.0,1648.8,4.85185]
[1744625545189,0.005,1649.0,1648.8,9.70373]
[1744625545390,0.005,1649.0,1648.6,4.85238]
[1744625545589,4.85655,1649.0,1648.6,4.85238]
[1744625545789,9.70811,1649.0,1648.7,4.85224]
[1744625546017,5.822591,1648.9,1648.6,4.85238]
[1744625546216,10.674521,1648.9,1648.5,4.85284]
[1744625546426,10.674521,1648.9,1648.5,9.70559]
[1744625546732,0.970811,1648.9,1648.6,4.85246]
[1744625546917,5.822541,1648.9,1648.6,4.85246]
[1744625547118,10.674441,1648.9,1648.6,4.85246]
[1744625547417,5.822541,1648.9,1648.6,4.85246]
[1744625548830,0.970811,1648.9,1648.6,9.70495]
[1744625549043,0.005,1649.0,1648.8,4.85201]
[1744625549331,0.005,1649.0,1648.7,4.85222]
[1744625549531,0.005,1649.0,1648.7,9.70444]
[1744625549684,0.005,1649.0,1648.7,4.85221]
[1744625549890,5.37371982,1649.0,1648.7,4.85221]
[1744625550633,4.85174,1648.9,1648.6,4.85253]
[1744625551211,0.005,1649.0,1648.5,4.85289]
[1744625551413,4.85651,1649.0,1648.7,4.85219]
[1744625552462,9.70809,1649.0,1648.7,4.85219]
[1744625552666,4.85651,1649.0,1648.7,4.85219]
[1744625552821,0.005,1649.0,1648.7,4.85219]
[1744625553021,4.85654,1649.0,1648.7,4.85219]
[1744625553316,4.85181,1648.9,1648.6,4.85253]
[1744625553521,5.85891382,1649.0,1648.6,9.70502]
[1744625553720,5.85891382,1649.0,1648.6,4.85249]
[1744625554032,4.85174,1648.9,1648.6,9.70499]
[1744625554356,10.71048382,1649.0,1648.6,4.85249]
[1744625554675,4.85172,1648.9,1648.6,4.85249]
[1744625554961,4.85172,1648.9,1648.6,9.70498]
[1744625555145,4.85172,1648.9,1648.6,4.85249]
[1744625555758,4.85172,1648.9,1648.6,9.705]
[1744625555973,10.71061382,1649.0,1648.6,9.70501]
[1744625556132,10.71058382,1649.0,1648.6,4.85249]
[1744625556337,4.85172,1648.9,1648.6,4.85249]
[1744625556651,4.85172,1648.9,1648.6,9.70498]
[1744625556953,10.71051382,1649.0,1648.6,9.705]
[1744625557155,1.07105138,1648.9,1648.4,5.6557]
[1744625557475,1.07105138,1648.9,1648.3,4.85341]
[1744625557476,4.85268,1648.6,1648.3,4.85341]
[1744625557649,9.70549,1648.6,1648.3,4.85341]
[1744625557841,9.70549,1648.6,1648.2,10.6982068]
[1744625558221,4.85291,1648.5,1648.2,0.1754868]
[1744625558424,8.64038,1648.3,1648.2,0.1754868]
[1744625558657,13.16742193,1648.3,1648.2,0.1754868]
[1744625558955,4.85524,1647.8,1647.4,4.85606]
[1744625559155,9.7108,1647.7,1647.3,14.14979]
[1744625559452,0.7869,1647.7,1647.1,5.69832]
[1744625559633,0.7869,1647.7,1647.4,4.85606]
[1744625559828,0.7869,1647.7,1647.1,0.8414]
[1744625560034,5.64177,1648.0,1647.6,4.85542]
[1744625560232,6.82371419,1648.0,1647.6,4.85539]
[1744625560851,5.64177,1648.0,1647.6,4.85539]
[1744625561386,4.85468,1647.9,1647.5,4.85581]
[1744625562092,4.85635,1647.4,1647.1,0.05]
[1744625562228,0.7926,1647.5,1647.1,0.05]
[1744625562426,4.8563,1647.4,1647.1,0.05]
[1744625562623,9.71271,1647.4,1647.1,0.05]
[1744625562846,4.85644,1647.3,1647.1,0.05]
[1744625563045,1.050531,1647.4,1647.1,0.05]
[1744625563262,0.7926,1647.5,1647.2,4.85647]
[1744625563561,9.71071,1647.7,1647.3,4.85627]
[1744625563749,4.85556,1647.6,1647.2,4.85672]
[1744625563950,4.85584,1647.5,1647.2,4.85672]
[1744625564541,4.85556,1647.6,1647.2,9.71331]
[1744625565045,4.85599,1647.5,1647.2,4.85669]
[1744625565790,4.85599,1647.5,1647.1,9.76389]
[1744625565966,4.85599,1647.5,1647.1,9.76378]
[1744625566159,4.85599,1647.5,1647.1,4.90687]
[1744625566605,4.85599,1647.5,1647.2,4.85669]
[1744625566807,9.712,1647.5,1647.1,4.90687]
[1744625566986,4.85615,1647.4,1647.1,4.90687]
[1744625567188,4.85615,1647.4,1647.1,0.05]
[1744625567858,4.85615,1647.4,1647.1,4.90696]
[1744625568194,5.82708,1647.5,1647.1,4.90696]
[1744625568360,4.85588,1647.5,1647.1,9.76386]
[1744625568787,9.71188,1647.5,1647.1,9.76381]
[1744625568975,4.85588,1647.5,1647.1,9.76381]
[1744625569397,9.71188,1647.5,1647.1,9.76381]
[1744625569604,9.71188,1647.5,1647.1,4.9069]
[1744625569898,4.85618,1647.4,1647.1,4.9069]
[1744625570100,10.683088,1647.5,1647.1,4.9069]
[1744625570399,0.971188,1647.5,1647.1,4.9069]
[1744625570603,4.85609,1647.5,1647.1,9.76381]
[1744625570759,4.85609,1647.5,1647.1,4.9069]
[1744625570962,5.6143,1647.4,1647.1,0.05]
[1744625571160,10.4707,1647.4,1647.1,0.05]
[1744625571417,11.51777,1647.4,1647.1,0.05]
[1744625572306,4.85643,1647.3,1647.1,0.05]
[1744625573000,4.85672,1647.2,1647.1,0.05]
[1744625573204,4.85643,1647.3,1647.1,0.05]
[1744625573408,4.85545,1647.7,1647.1,0.05]
[1744625573572,4.85453,1648.0,1647.3,4.85643]
[1744625573911,4.85466,1647.9,1647.5,4.85559]
[1744625574098,4.85547,1647.7,1647.3,4.85631]
[1744625574322,9.71142,1647.6,1647.2,10.52506]
[1744625574474,4.85588,1647.5,1647.1,13.41399]
[1744625574799,4.85615,1647.4,1647.1,13.41399]
[1744625574973,4.85615,1647.4,1647.1,0.05]
[1744625575375,9.71242,1647.4,1647.1,4.90699]
[1744625575602,4.85657,1647.3,1647.1,0.05]
[1744625576478,7.07058027,1647.6,1647.1,4.90679]
[1744625576479,7.07077027,1647.6,1647.1,4.90679]
[1744625576674,6.620692,1647.6,1647.2,4.85651]
[1744625576875,11.476402,1647.6,1647.2,4.85651]
[1744625577218,1.764942,1647.6,1647.1,5.69665]
[1744625577375,4.85619,1647.4,1647.1,5.69665]
[1744625579674,9.71252,1647.4,1647.1,4.90695]
[1744625579874,4.85644,1647.3,1647.1,0.05]
[1744625580074,4.85672,1647.2,1647.1,0.05]
[1744625583404,8.217,1647.5,1647.2,4.85659]
[1744625583608,4.85497,1647.8,1647.5,4.85575]
[1744625583813,18.68388,1647.9,1647.6,4.85553]
[1744625584123,4.85495,1647.8,1647.5,4.85573]
[1744625586206,8.9744,1647.9,1647.4,4.85606]
[1744625586392,4.85525,1647.7,1647.4,4.85604]
[1744625587086,9.71068,1647.7,1647.4,4.85604]
[1744625587281,9.71068,1647.7,1647.3,10.46446]
[1744625587494,4.85559,1647.6,1647.3,5.60808]
[1744625587682,0.971068,1647.7,1647.1,4.90695]
[1744625587883,4.85576,1647.6,1647.2,4.85658]
[1744625588213,4.85614,1647.4,1647.1,4.90697]
[1744625588515,5.826438,1647.7,1647.4,4.85612]
[1744625588685,3.0,1647.8,1647.1,1.102361]
[1744625588891,8.9744,1647.9,1647.6,4.85533]
[1744625589197,13.82911,1647.9,1647.6,4.85533]
[1744625589604,8.217,1647.9,1647.7,4.85513]
[1744625589808,8.217,1647.9,1647.8,4.85495]
[1744625590005,10.52718,1648.1,1647.7,4.85513]
[1744625590189,4.85442,1648.0,1647.7,4.85513]
[1744625590619,4.85442,1648.0,1647.7,9.71028]
[1744625590792,10.52709,1648.1,1647.8,0.55681424]
[1744625591117,5.67291,1648.1,1647.8,0.55681424]
[1744625591438,10.52716,1648.1,1647.8,0.55681424]
[1744625591583,4.8544,1648.0,1647.8,0.55681424]
[1744625591918,4.8544,1648.0,1647.7,4.85513]
[1744625591919,4.8544,1648.0,1647.7,9.71027]
[1744625592083,5.67291,1648.1,1647.7,9.71027]
[1744625592386,6.725755,1648.1,1647.7,4.85514]
[1744625592583,9.0146,1648.3,1647.6,4.85554]
[1744625592786,8.217,1648.3,1647.9,4.85454]
[1744625593004,4.85388,1648.2,1647.9,4.85454]
[1744625593213,13.07074,1648.3,1647.9,4.85453]
[1744625593420,13.07074,1648.3,1647.9,9.7091]
[1744625593791,13.07074,1648.3,1647.8,0.8055]
[1744625593792,8.217,1648.3,1648.0,9.70849]
[1744625593993,8.217,1648.3,1648.0,4.85424]
[1744625594187,5.65053,1648.5,1648.1,4.85396]
[1744625594592,4.85343,1648.4,1648.0,4.85428]
[1744625594801,9.70687,1648.4,1648.0,9.70854]
[1744625595008,4.85343,1648.4,1648.1,4.85404]
[1744625595218,6.832603,1648.5,1648.1,9.70788]
[1744625595392,4.85331,1648.4,1648.0,4.85432]
[1744625595592,4.85361,1648.3,1648.0,4.85432]
[1744625595793,4.85361,1648.3,1648.0,9.70857]
[1744625596210,4.85361,1648.3,1647.9,4.85461]
[1744625596463,4.85392,1648.2,1647.8,5.66042]
[1744625596594,9.70795,1648.2,1647.8,5.66042]
[1744625596809,4.85407,1648.1,1647.8,4.85486]
[1744625597139,9.70833,1648.1,1647.7,4.85518]
[1744625597342,9.70833,1648.1,1647.6,0.7713]
[1744625597343,4.85484,1647.9,1647.6,4.8555]
[1744625597509,4.85507,1647.8,1647.4,13.07106]
[1744625597843,5.340497,1647.8,1647.4,4.85602]
[1744625598023,10.195697,1647.8,1647.4,4.85602]
[1744625598400,4.85527,1647.7,1647.4,4.85602]
[1744625599237,4.85527,1647.7,1647.3,4.85641]
[1744625599424,4.85555,1647.6,1647.3,4.85641]
[1744625599626,4.85555,1647.6,1647.2,4.85671]
[1744625599824,0.7614,1647.7,1647.1,6.78158628]
[1744625600006,6.17,1648.1,1647.9,4.85453]
[1744625600329,0.7614,1648.2,1647.9,4.85453]
[1744625600330,5.61531,1648.2,1647.9,4.85453]
[1744625600504,0.7614,1648.2,1647.6,9.71088]
[1744625600710,4.85433,1648.1,1647.7,4.85521]
[1744625601045,4.85418,1648.1,1647.8,4.85484]
[1744625601535,9.70844,1648.1,1647.7,4.85516]
[1744625601699,9.70895,1648.0,1647.6,9.7107]
[1744625602300,4.85523,1647.8,1647.4,4.85613]
[1744625602506,4.85529,1647.7,1647.4,9.71216]
[1744625602797,4.85566,1647.6,1647.3,4.85639]
[1744625602999,9.7114,1647.6,1647.2,10.3853871]
[1744625603253,4.85644,1647.3,1647.1,0.05]
[1744625603534,5.6362,1647.5,1647.2,4.85668]
[1744625604046,5.6362,1647.5,1647.2,9.71327]
[1744625604257,5.63617,1647.5,1647.1,4.90696]
[1744625604401,5.63617,1647.5,1647.1,0.05]
[1744625604402,4.85659,1647.3,1647.1,0.05]
[1744625604607,4.8565,1647.3,1647.1,0.05]
[1744625604835,9.71318,1647.3,1647.1,0.05]
[1744625605035,4.85672,1647.2,1647.1,0.05]
[1744625605458,5.64592,1647.2,1647.1,0.05]
[1744625605607,7.181818,1647.2,1647.1,0.05]
[1744625606244,10.35828469,1647.2,1647.1,0.05]
[1744625606440,4.85832,1646.7,1646.5,0.3979215]
[1744625606661,5.68472,1646.7,1646.5,0.3979215]
[1744625606831,10.5431,1646.7,1646.5,0.3979215]
[1744625607041,5.68467,1646.7,1646.5,0.3979215]
[1744625607373,4.85849,1646.6,1646.5,0.3979215]
[1744625609462,14.02849,1646.6,1646.5,0.3979215]
[1744625610166,17.20495669,1646.6,1646.5,0.3979215]
[1744625610666,14.02849,1646.6,1646.5,0.3979215]
[1744625610863,14.81139,1646.6,1646.5,0.3979215]
[1744625611165,17.4148127,1646.6,1646.5,0.3979215]
[1744625611363,12.5563227,1646.6,1646.5,0.3979215]
[1744625611530,9.9529,1646.6,1646.5,0.3979215]
[1744625611737,6.17,1646.6,1646.5,0.3979215]
[1744625611953,3.0,1646.7,1646.5,0.3979215]
[1744625612331,7.85836,1646.7,1646.5,0.3979215]
[1744625612553,12.71673,1646.7,1646.5,0.3979215]
[1744625612739,4.85849,1646.6,1646.5,0.3979215]
[1744625617036,5.67379,1646.6,1646.5,0.3979215]
[1744625617970,11.85025669,1646.6,1646.5,0.3979215]
[1744625618148,8.67379,1646.6,1646.5,0.3979215]
[1744625620862,14.84379,1646.6,1646.5,0.3979215]
[1744625621062,18.58350661,1646.6,1646.5,0.3979215]
[1744625621262,14.84379,1646.6,1646.5,0.3979215]
[1744625622194,15.39379,1646.6,1646.5,0.3979215]
[1744625622605,8.61567,1646.2,1646.1,0.05]
[1744625622897,24.066188,1646.2,1646.1,0.05]
[1744625623273,24.616188,1646.2,1646.1,0.05]
[1744625625201,25.06930995,1646.2,1646.1,0.05]
[1744625628303,17.55612195,1646.2,1646.1,0.05]
[1744625628521,9.71775,1646.5,1646.1,0.05]
[1744625628805,14.15505757,1646.6,1646.1,0.05]
[1744625628806,18.69652,1646.6,1646.2,4.85956]
[1744625629002,12.52652,1646.6,1646.3,4.85936]
[1744625629209,3.0,1646.5,1646.2,9.71913]
[1744625629505,12.52652,1646.6,1646.3,5.69105]
[1744625629910,3.0,1646.5,1646.3,5.69105]
[1744625630487,3.0,1646.5,1646.3,5.69099]
[1744625630798,3.0,1646.5,1646.4,4.85908]
[1744625631506,3.0,1646.5,1646.3,10.55024]
[1744625631876,3.0,1646.5,1646.3,5.69095]
[1744625632395,3.0,1646.5,1646.3,10.55019]
[1744625632586,3.0,1646.5,1646.3,5.69094]
[1744625633113,3.0,1646.5,1646.3,10.55022]
[1744625633287,3.0,1646.5,1646.3,5.69094]
[1744625633487,7.668,1646.6,1646.4,4.85908]
[1744625635113,7.668,1646.6,1646.3,5.69107]
[1744625636324,7.668,1646.6,1646.3,10.55034]
[1744625636618,7.668,1646.6,1646.3,5.69097]
[1744625637208,12.5265,1646.6,1646.3,0.8317]
[1744625637374,12.5265,1646.6,1646.3,5.69095]
[1744625637585,6.17,1647.0,1646.8,5.68042]
[1744625637780,12.52384,1647.5,1647.1,4.85678]
[1744625637781,18.69391,1647.5,1647.1,4.85678]
[1744625637981,18.69391,1647.5,1646.9,4.85761]
[1744625637982,57.90693,1647.8,1647.4,4.85613]
[1744625638286,3.0,1647.7,1647.4,4.85613]
[1744625638486,12.71086,1647.7,1647.3,4.85632]
[1744625638690,9.71302,1647.3,1647.0,0.7763]
[1744625638885,4.85675,1647.2,1647.0,0.7763]
[1744625639178,10.684362,1647.3,1647.0,0.7763]
[1744625639375,4.85647,1647.3,1647.0,0.7763]
[1744625639581,9.71305,1647.3,1647.0,0.7763]
[1744625639782,4.85647,1647.3,1647.0,0.7763]
[1744625639975,9.71306,1647.3,1647.0,0.7763]
[1744625640181,4.8568,1647.2,1647.0,0.7763]
[1744625640381,9.71382,1647.2,1647.0,0.7763]
[1744625641014,4.8568,1647.2,1647.0,0.7763]
[1744625641213,9.71369,1647.2,1647.0,0.7763]
[1744625641479,4.8568,1647.2,1647.0,0.7763]
[1744625642512,10.684466,1647.3,1647.0,0.7763]
[1744625642718,4.8569,1647.2,1646.8,4.85789]
[1744625642919,9.7139,1647.2,1646.8,4.85789]
[1744625643318,9.7139,1647.2,1646.8,4.85778]
[1744625643539,4.8569,1647.2,1646.8,4.85777]
[1744625643739,5.827756,1647.3,1646.9,4.8576]
[1744625644151,4.8569,1647.2,1646.8,4.8578]
[1744625644473,9.71389,1647.2,1646.8,4.8578]
[1744625644620,4.8569,1647.2,1646.8,4.85776]
[1744625644826,10.684356,1647.3,1646.9,4.85736]
[1744625645055,4.85673,1647.2,1646.9,4.85736]
[1744625645269,9.71361,1647.2,1646.9,4.85736]
[1744625645446,4.85673,1647.2,1646.9,4.85736]
[1744625645865,9.71361,1647.2,1646.8,4.85786]
[1744625646038,4.85705,1647.1,1646.8,4.85786]
[1744625646435,4.85705,1647.1,1646.8,9.71563]
[1744625646644,4.85705,1647.1,1646.8,4.85777]
[1744625647536,0.971383,1647.1,1646.7,0.8283]
[1744625647786,4.85774,1646.9,1646.7,0.8283]
[1744625648790,4.85774,1646.9,1646.3,0.8247]
[1744625649087,4.85736,1647.0,1646.7,5.68271]
[1744625649369,3.0,1647.1,1646.7,0.8247]
[1744625649541,3.0,1647.1,1647.0,4.85731]
[1744625649741,3.0,1647.2,1647.0,4.85731]
[1744625649960,3.0,1647.2,1646.9,4.85742]
[1744625650336,7.85676,1647.2,1646.8,4.85783]
[1744625650539,9.71443,1647.1,1646.8,4.85783]
[1744625650966,8.7395866,1647.2,1646.8,9.71562]
[1744625651174,7.85678,1647.2,1646.9,4.85746]
[1744625651540,4.85713,1647.1,1646.8,4.85783]
[1744625651848,3.0,1647.2,1646.7,0.8247]
[1744625652048,3.0,1647.2,1646.4,7.666]
[1744625652049,4.85816,1646.8,1646.4,5.61137]
[1744625652253,4.85816,1646.8,1646.4,10.47038]
[1744625652254,4.85822,1646.7,1646.4,10.47038]
[1744625652842,9.71658,1646.7,1646.4,0.7524]
[1744625653056,4.85793,1646.8,1646.4,5.61138]
[1744625653260,4.85715,1647.1,1646.7,4.85797]
[1744625653577,3.0,1646.9,1646.7,4.85797]
[1744625654075,7.85765,1646.9,1646.6,9.7168]
[1744625654378,3.0,1646.9,1646.7,4.85819]
[1744625654672,4.85673,1647.2,1646.6,4.85849]
[1744625654878,4.85673,1647.2,1646.8,4.8577]
[1744625654879,3.0,1647.0,1646.8,4.8577]
[1744625655042,3.0,1647.0,1646.7,4.8582]
[1744625655240,7.8574,1647.0,1646.7,4.8582]
[1744625656562,12.71486,1647.0,1646.7,4.8582]
[1744625657181,4.85761,1646.9,1646.5,4.85874]
[1744625657384,9.71551,1646.9,1646.5,4.85873]
[1744625657582,4.85803,1646.8,1646.5,4.85873]
[1744625657884,12.22637,1647.0,1646.6,4.85822]
[1744625658055,17.08384,1647.0,1646.7,4.85819]
[1744625658382,4.85765,1646.9,1646.6,4.85822]
[1744625658585,4.85765,1646.9,1646.6,9.7166]
[1744625658753,12.22637,1647.0,1646.7,4.85815]
[1744625658956,7.369,1647.0,1646.8,4.85787]
[1744625659192,3.0,1647.1,1646.9,4.85761]
[1744625659599,7.8571,1647.1,1646.8,5.68919]
[1744625659889,9.128462,1647.1,1646.8,0.8314]
[1744625660091,7.369,1647.4,1646.8,0.8314]
[1744625660299,7.369,1647.4,1647.2,4.85661]
[1744625660471,7.369,1647.4,1647.1,4.85699]
[1744625660472,4.85619,1647.4,1647.1,4.85699]
[1744625660677,4.8559,1647.5,1647.2,4.85669]
[1744625660885,4.8559,1647.5,1647.1,4.85689]
[1744625661197,4.85614,1647.4,1647.1,4.85689]
[1744625661501,9.71243,1647.4,1647.1,4.85689]
[1744625661792,5.41747,1647.5,1647.1,4.85687]
[1744625661971,3.0,1647.6,1647.2,0.822]
[1744625662177,3.0,1647.6,1647.4,4.85599]
[1744625662377,4.85526,1647.7,1647.3,4.85643]
[1744625662577,4.85567,1647.6,1647.2,10.53527]
[1744625662777,4.85597,1647.5,1647.2,5.6786]
[1744625663377,1.775464,1647.5,1647.0,5.63245]
[1744625663588,4.85638,1647.4,1647.0,5.63245]
[1744625663785,9.71276,1647.4,1647.0,10.48963]
[1744625663983,4.85613,1647.4,1646.8,5.63304]
[1744625664189,9.71383,1647.2,1646.8,5.63298]
[1744625664396,4.85705,1647.1,1646.8,5.63298]
[1744625665167,4.85705,1647.1,1646.9,0.55694784]
[1744625665368,4.85731,1647.0,1646.9,0.55694784]
[1744625665600,4.85731,1647.0,1646.6,10.47112]
[1744625665800,4.85731,1647.0,1646.6,5.61275]
[1744625666001,4.85764,1646.9,1646.6,5.61275]
[1744625666302,4.85829,1646.7,1646.4,5.68791]
[1744625666604,4.85829,1646.7,1646.5,0.55779825]
[1744625667106,4.85849,1646.6,1646.2,9.71904]
[1744625667404,4.85849,1646.6,1646.3,0.33488452]
[1744625668071,4.85849,1646.6,1646.4,0.55812918]
[1744625668693,4.85849,1646.6,1646.3,4.85935]
[1744625668895,4.85833,1646.7,1646.4,4.85891]
[1744625669100,4.85859,1646.6,1646.3,4.85928]
[1744625669289,4.85859,1646.6,1646.2,4.85958]
[1744625669486,4.85859,1646.6,1646.3,4.85936]
[1744625669702,6.11032289,1646.9,1646.5,4.8586]
[1744625669901,1.25267289,1646.9,1646.1,0.8789]
[1744625670099,4.85874,1646.6,1646.2,5.19429322]
[1744625670298,5.644614,1646.6,1646.2,5.19429322]